Cogmind - Beta 15 @@@ ROGUE MODE // 2025.10.07 @ 10:27:11 Player: DietSnapple Result: Destroyed by S-10 Pest with Light Assault Rifle Performance ------------- Evolutions (0) 0 Regions Visited (2) 400 Robots Destroyed (24) 120 Value Destroyed (498) 498 Prototype IDs (2) 40 Alien Tech Used (0) 0 Bonus (0) 0 TOTAL SCORE: 1058 Bonus ------- None Cogmind --------- Core Integrity 0/250 Matter 276/300 Energy 160/160 System Corruption 0% Temperature Cool (0) Movement Rolling (100) Location -10/Mines Parts ------- > --- POWER (1) -------- Light Nuclear Core > --- PROPULSION (2) --- Compact Wheel Compact Wheel > --- UTILITY (2) ------ Medium Storage Unit Light Armor Plating > --- WEAPON (2) ------- Assault Rifle Assault Rifle > --- INVENTORY (10) --- Ion Engine Compact Wheel Compact Wheel Heat Sink Medium Matter Pod (100) High-capacity Matter Pod (200) Targeting Computer Utility Shielding Light Armor Plating Assault Rifle Peak State ------------ > --- POWER ------------ Ion Engine > --- PROPULSION ------- Light Treads Light Treads > --- UTILITY ---------- Improved Heat Sink Medium Storage Unit > --- WEAPON ----------- Medium Laser Small Laser > --- INVENTORY -------- Ion Engine Light Ion Engine Light Nuclear Core Wheel Compact Wheel Small Storage Unit Medium Matter Pod Light Armor Plating [Rating: 10] Favorites ----------- Power Ion Engine Engine Ion Engine Power Core Light Nuclear Core Propulsion Compact Wheel Treads Light Treads Wheel Compact Wheel Utility Medium Storage Unit Device Improved Heat Sink Storage Medium Storage Unit Protection Light Armor Plating Weapon Assault Rifle Energy Gun Medium Laser Ballistic Gun Assault Rifle Build | -11 -10 -10 ------- Run | Yrd Mat Min Slots Evolved . | . . . Power . | . . . Propulsion . | . . . Utility . | . . . Weapon . | . . . Parts Attached 17 | 7 7 3 Power 3 | 1 1 1 Engine 2 | 1 1 . Core 1 | . . 1 Reactor . | . . . Propulsion 5 | 2 2 1 Treads 2 | 2 . . Leg . | . . . Wheel 3 | . 2 1 Hover . | . . . Flight . | . . . Utility 4 | 1 2 1 Device 1 | . 1 . Storage 2 | 1 1 . Processor . | . . . Hackware . | . . . Protection 1 | . . 1 Artifact . | . . . Weapon 5 | 3 2 . Energy Gun 2 | 2 . . Energy Cannon . | . . . Ballistic Gun 3 | 1 2 . Ballistic Cannon . | . . . Launcher . | . . . Special Weapon . | . . . Impact Weapon . | . . . Slashing Weapon . | . . . Piercing Weapon . | . . . Special Melee Weapon . | . . . Unidentified Prototypes . | . . . Parts Lost 2 | . 2 . Power 1 | . 1 . Propulsion 1 | . 1 . Utility . | . . . Weapon . | . . . Highest Loss Streak 2 | . 2 . To Critical Strikes . | . . . Average Backups 8 | 1 8 9 Power 1 | . 2 1 Propulsion 2 | 1 2 2 Utility 3 | . 3 4 Weapon . | . . 1 Tool/Special . | . . . Unused Backups 10 | . . 10 Power 1 | . . 1 Propulsion 2 | . . 2 Utility 6 | . . 6 Weapon 1 | . . 1 Tool/Special . | . . . Average Slot Usage (%) 93 | . 91 98 Engine 8 | . 12 1 Core 4 | . . 12 Treads 8 | . 12 . Wheel 14 | . 9 26 Device 9 | . 13 1 Storage 14 | . 14 14 Protection 4 | . . 12 Energy Gun 12 | . 19 . Ballistic Gun 15 | . 8 28 Peak Build Rating 10 | 6 10 10 Average Rating 8 | 4 8 9 On Entrance 5 | . 6 9 Naked Turns . | . . . Heaviest Build 22 | 13 20 22 Greatest Support 40 | 40 40 32 Greatest Overweight (x) 1 | . 1 1 Average Overweight (x) . | . . . Largest Inventory Capacity 10 | 8 10 10 Average Capacity 9 | 5 9 10 Most Carried 10 | 3 10 10 Average Carried 8 | 2 8 9 Final Capacity 10 | 8 10 10 Final Carried 10 | 3 10 10 Class Distribution -------------------- 100% | Mutant Dominant Class ---------------- Mutant | -10/Materials Mutant | -10/Mines Resources | -11 -10 -10 ----------- Run | Yrd Mat Min Matter Collected 752 | 121 539 92 Remotely . | . . . Salvage Created 679 | . 578 101 Parts 49 | . 34 15 Haulers Intercepted . | . . . Recyclers Shooed 1 | . 1 . Parts Field Recycled . | . . . Retrieved Matter . | . . . Parts Self-Destructed . | . . . Prevented . | . . . Kills | -11 -10 -10 ------- Run | Yrd Mat Min Combat Hostiles Destroyed 18 | . 13 5 Guns 17 | . 12 5 Classes Destroyed 7 | . 7 . Worker 1 | . 1 . Builder 1 | . 1 . Tunneler 2 | . 1 1 Operator 1 | . 1 . Watcher 1 | . 1 . Swarmer 8 | . 3 5 Grunt 10 | . 10 . Best Kill Streak 5 | . 5 3 Combat Bots Only 4 | . 4 3 Max Kills in Single Turn 2 | . 2 1 Gunslinging 1 | . 1 . Exploded . | . . . Melee . | . . . Uniques/NPCs Destroyed . | . . . Combat | -11 -10 -10 -------- Run | Yrd Mat Min Hostile Shots Fired 85 | . 69 16 Missed 25 | . 21 4 Hits 60 | . 48 12 Projectile 60 | . 48 12 Critical Strikes 3 | . 2 1 Damage Taken 767 | . 674 93 Core 252 | . 233 19 Absorbed by Shields . | . . . Core Remaining (%) 100 | 100 . . Volleys Fired 59 | . 50 9 Largest 2 | . 2 2 Hottest 90 | . 90 40 Shots Fired 118 | . 100 18 Gun 118 | . 100 18 Cannon . | . . . Launcher . | . . . Special . | . . . Kinetic 40 | . 22 18 Thermal 78 | . 78 . Explosive . | . . . Electromagnetic . | . . . Robot Hit Streak 10 | . 10 8 Robot Miss Streak 4 | . 4 2 Penetration Max . | . . . Secondary Targets 6 | . 4 2 Max Gunslinging Chain 1 | . 1 1 Shots Hit Robots 77 | . 66 11 Core Hits 38 | . 31 7 Critical Kills . | . . . Critical Parts Destroyed . | . . . Critical Strikes 1 | . 1 . Burn 1 | . 1 . Melee Attacks . | . . . Impact . | . . . Slashing . | . . . Piercing . | . . . Sneak Attacks . | . . . Combat Hostiles . | . . . Follow-up Attacks . | . . . Damage Inflicted 978 | . 834 144 Guns 971 | . 834 137 Cannons . | . . . Explosions . | . . . Melee . | . . . Ramming 7 | . . 7 Kinetic 359 | . 222 137 Thermal 612 | . 612 . Explosive . | . . . Electromagnetic . | . . . Impact . | . . . Slashing . | . . . Piercing . | . . . Highest Corruption . | . . . Average Corruption . | . . . Corruption Purged . | . . . Corruption Blocked . | . . . Overload Shots . | . . . Overflow Damage . | . . . Projectiles . | . . . Explosions . | . . . Melee . | . . . Knockbacks . | . . . Impact . | . . . Kinetic . | . . . Secondary . | . . . Self-Inflicted Damage 3 | . . 3 Shots . | . . . Rammed 1 | . . 1 Targets Rammed 1 | . . 1 Kicked . | . . . Crushed . | . . . Highest Temperature 78 | . 78 . Average Temperature 14 | . 14 . Received Heat Transfer 270 | . 270 . Siege Activations . | . . . Martial Activations . | . . . Shielding Activations . | . . . Robots Disrupted . | . . . Combat Hostiles . | . . . Robots Corrupted . | . . . Combat Hostiles . | . . . Parts Fried . | . . . Impact Corruptions . | . . . Robots Melted 1 | . 1 . Combat Hostiles 1 | . 1 . Parts Melted 2 | . 2 . Heat Transferred 1734 | . 1734 . Parts Sabotaged . | . . . Parts Stolen . | . . . Parts Stripped . | . . . Power Chain Reactions . | . . . Alert | -11 -10 -10 ------- Run | Yrd Mat Min Maximum Alert Level . | . . . Low Security (%) 100 | 100 100 100 Level 1 . | . . . Level 2 . | . . . Level 3 . | . . . Level 4 . | . . . Level 5 . | . . . High Security . | . . . Max Security . | . . . Peak Influence 84 | . 84 70 Initial 19 | . . 19 Average 22 | . 30 13 Influence Increases 524 | . 399 125 Destroy 0b10 Robot/C 360 | . 260 100 Destroy 0b10 Robot/NC 30 | . 25 5 Destroy Leader 72 | . 52 20 Successful Hack 17 | . 17 . Lose Combat Pursuer 45 | . 45 . Influence Decreases 479 | . 349 130 Entered New Map 31 | . . 31 Time Decay 436 | . 337 99 Lost Part 12 | . 12 . Squads Dispatched 4 | . 3 1 Investigation 2 | . 1 1 Extermination . | . . . Reinforcement 2 | . 2 . Assault . | . . . Garrison . | . . . Intercept . | . . . Searches Triggered . | . . . Construction Impeded . | . . . Haulers Reinforced . | . . . Active Scanning Responses . | . . . Cargo Convoy Interrupts . | . . . Stealth | -11 -10 -10 --------- Run | Yrd Mat Min Distress Signals 3 | . 2 1 Communications Jammed . | . . . Distress Signals . | . . . Times Spotted 29 | . 23 6 Peak Tracking Total 5 | . 5 3 Tactical Retreats 3 | . 3 . Traps | -11 -10 -10 ------- Run | Yrd Mat Min Traps Triggered 1 | . 1 . Indirectly . | . . . Trap Hack Attempts . | . . . Triggered . | . . . Disarmed . | . . . Reprogrammed . | . . . Reused . | . . . Traps Extracted . | . . . Installed . | . . . Triggered . | . . . Machines | -11 -10 -10 ---------- Run | Yrd Mat Min Machines Disabled . | . . . Max in Single Turn . | . . . Machines Repaired . | . . . Machines Dismantled . | . . . Machines Sabotaged . | . . . Overloaded Fab Kills . | . . . Hacking | -11 -10 -10 --------- Run | Yrd Mat Min Machines Accessed 5 | . 3 2 Terminals 3 | . 3 . Fabricators . | . . . Repair Stations . | . . . Recycling Units . | . . . Scanalyzers . | . . . Garrison Access . | . . . Total Hacks 12 | . 10 2 Successful 8 | . 6 2 Failed 4 | . 4 . Catastrophic . | . . . Database Lockouts . | . . . Manual 10 | . 10 . Terminals 10 | . 10 . Fabricators . | . . . Repair Stations . | . . . Recycling Units . | . . . Scanalyzers . | . . . Garrison Access . | . . . Terminal Hacks 6 | . 4 2 Prototype ID Bank 1 | . 1 . Open Door 2 | . . 2 Hauler Manifests 1 | . 1 . Registered Components 1 | . 1 . Zone Layout 1 | . 1 . Fabricator Hacks . | . . . Repair Station Hacks . | . . . Recycling Unit Hacks . | . . . Scanalyzer . | . . . Garrison Access Hacks . | . . . Unauthorized Hacks 2 | . 2 . Terminals 2 | . 2 . Botnet 1 | . 1 . Operators 1 | . 1 . Fabricators . | . . . Repair Stations . | . . . Recycling Units . | . . . Scanalyzers . | . . . Garrison Access . | . . . Data Cores Recovered . | . . . Used . | . . . Hacking Detections 1 | . 1 . Full Trace Events . | . . . Feedback Events . | . . . Feedback Blocked . | . . . Robot Schematics Acquired . | . . . Robots Built . | . . . Authchips . | . . . Time . | . . . Total Robot Build Rating . | . . . Part Schematics Acquired . | . . . Parts Built . | . . . Authchips . | . . . Time . | . . . Total Part Build Rating . | . . . Parts Repaired . | . . . Time . | . . . Parts Recycled . | . . . Recycled Matter . | . . . Retrieved Matter . | . . . Retrieved Components . | . . . Parts Scanalyzed . | . . . Part Schematics Acquired . | . . . Parts Damaged . | . . . Bothacking | -11 -10 -10 ------------ Run | Yrd Mat Min Used RIF Installer . | . . . Robots Hacked . | . . . Non-combat . | . . . Combat . | . . . Robot Hacks Applied . | . . . Relay Couplers Released . | . . . Fabnet Peak Effective % . | . . . Robots Rewired . | . . . Allies Hacked . | . . . Hacks Repelled . | . . . Allies | -11 -10 -10 -------- Run | Yrd Mat Min Total Allies . | . . . Largest Group . | . . . Highest-Rated Group . | . . . Highest-Rated Ally . | . . . Total Orders . | . . . Ally Attacks . | . . . Total Damage . | . . . Kills . | . . . Allies Corrupted . | . . . Allies Melted . | . . . Intel | -11 -10 -10 ------- Run | Yrd Mat Min Active Infowar (turns) . | . . . Robot Analysis Total . | . . . Derelict Logs Recovered 2 | . . 2 Drone Launches . | . . . Drone Recoveries . | . . . Exploration | -11 -10 -10 ------------- Run | Yrd Mat Min Turns Passed 1603 | 134 989 480 Spaces Moved 1131 | 79 615 437 Core 4 | 4 . . Treads 320 | 75 245 . Legs . | . . . Wheels 807 | . 370 437 Hover . | . . . Flight . | . . . Fastest Speed 50 | 50 90 100 Average Speed 119 | 154 127 101 Slowest Speed 160 | 160 160 115 Overloaded Moves . | . . . Propulsion Burnouts . | . . . Robots Hopped . | . . . Potential Cave-ins . | . . . Cave-ins Triggered . | . . . Exploration Rate (%) 54 | 7 71 86 Regions Visited 2 Branch Regions 1 Pre-discovered Areas . | . . . Known Exits Taken . | . . . Unknown Exits Taken 2 | 1 1 . Scrap Searched . | . . . Spaces Dug . | . . . Terrain Destroyed . | . . . Melee . | . . . Projectile . | . . . AOE . | . . . Terrain Rammed . | . . . Walls Destroyed . | . . . Machines Disabled . | . . . Actions | -11 -10 -10 --------- Run | Yrd Mat Min Total 1261 | 88 716 457 Wait 34 | . 32 2 Move 1129 | 78 614 437 Hop . | . . . Pick Up 16 | 3 10 3 Fast Attach 7 | 6 1 . Attach 5 | . 3 2 Detach . | . . . Swap 5 | 1 3 1 Drop 5 | . 3 2 Fire 59 | . 50 9 Melee . | . . . Ram 1 | . . 1 Kick . | . . . Crush . | . . . Escape Stasis . | . . . Rewire . | . . . Trap . | . . . Miscellaneous . | . . . Route ------- -11/Scrapyard -10/Materials (discovered 3 exits: [*Mat x2] / *Min) -10/Mines (discovered 1 exit: [*Mat]) History --------- Turn | Location | Event 15 | -11/Scrapyard | Discovered new exit (range 16) 135 | -11/Scrapyard | Entered Materials 255 | -10/Materials | Discovered new exit (range 8) 308 | -10/Materials | Build established: Mutant 338 | -10/Materials | Discovered new exit (range 15) 718 | -10/Materials | Core integrity fell below 50% 761 | -10/Materials | Discovered new exit (range 3) 788 | -10/Materials | Core integrity fell below 20% 1124 | -10/Materials | Entered Mines 1151 | -10/Mines | Met a Derelict who couldn't figure out how to use a Trap Extractor 1159 | -10/Mines | Met a Derelict bent on vengeance 1228 | -10/Mines | Met a Derelict shopkeep closing up shop 1235 | -10/Mines | Learned location of 1 exit from Materials 1338 | -10/Mines | Learned Materials trap positions 1382 | -10/Mines | Discovered new exit (range 12) 1604 | -10/Mines | Destroyed by S-10 Pest with Light Assault Rifle Last Messages --------------- 01348_ Acquired Utility Shielding. 01351_ Dropped Lgt. Ion Engine. 01352_ Acquired Targeting Computer. 01355_ K-01 Serf collects debris. 01382_ EXIT=FOUND 01388_ T-07 Excavator is excavating. 01412_ U-05 Engineer lays Concrete. 01413_ T-07 Excavator is excavating. 01413_ U-05 Engineer lays Concrete. 01424_ Slammed into T-07 Excavator. 01424_ T-07 Excavator sends out distress signal. 01430_ S-10 Pest destroyed. 01433_ Switching to secondary target: S-10 Pest. 01436_ S-10 Pest destroyed. 01439_ Acquired 29 matter. 01537_ T-07 Excavator destroyed. 01540_ Acquired 6 matter. 01543_ K-01 Serf collects debris. 01593_ S-10 Pest destroyed. 01596_ Switching to secondary target: S-10 Pest. Map ----- +----------------------------------------------------+ | | | | | | | | | | | | | | | ?????????????????????????????????????????????????? | | ?????????????????????????????????????????????????? | | ?????????????????????????????????????????????????? | | ?????????????????????????????????????????????????? | | ?????????????????????????? ??????????????????????? | | ?????????????????????????? ??????????????????????? | | ?????????????????????????? """???????????????????? | | ?????????????????????????? """???????????????????? | | ?????????????????????????? ????????????????????? | | ?????????????????????????? ????????????????????? | | ?????????????????????????? ????????????????????? | | ##???????????????????????# #????????????????????? | | ###?????????????????????# #????????????????????? | | #####?????????????????# #????????????????????? | | ###???????????????# #????????????????????? | | ##??????????????# ##???????????????????? | | #??????????????#= ##??????????????????? | | ?????###%s #??????????????????? | | ### #????## @= #??????????????????? | | ##????????????????## ##??????????????????? | | ##????????????????## """ ##???????????????????? | | ##?????????????????# """ #????????????????????? | | ##?????????????????# """g#????????????????????? | | ####??????????????## #????????????????????? | | ##??????????????#### ##????????????????????? | | #?????????????????# #??????????????####???? | | ##?????????????????# #?????????????## ###?? | | ##??????????????????# #?????????????# ##? | | ##???????????????????# #?????????????# #? | | #????????????????????# #?????????????## #? | | #????????????????##### #??????????????## #? | | ##???????????????## #??????????????## ##? | | #???????????????## #???????????#### #?? | | #??????????????## ##???######### #?? | | ###?????????????## ##????# #?? | | ???????????????## #?????# ##### #?? | | ?????????????### #?????# #???## ##?? | | ????????????## ##?????# #????## ##??? | | ???????###### ####??????# #?????# ##???? | | ???????# ##????????# #?????# ##???? | | ???????# ### ##???????# #?????## ####? | | ???????# #?## #???????# #?????## ## | | ???????# #??### #???????# ####### # | +----------------------------------------------------+ Best States ------------- Heat Dissipation 39 Energy Generation 14 Energy Capacity 250 Matter Stores 300 Matter Capacity 300 Sight Range 16 Terrain Scan Density 10 Armor Coverage 150 Evasion (%) 42 Recoil Reduction 2 Item Schematics ----------------- None Robot Schematics ------------------ None Fabricated ------------ Nothing Repaired ---------- Nothing Alien Tech Used ----------------- None Achievements -------------- None Challenges ------------ None Game ------ Seed AlloyStealthEdition Manual? 0 Play Time 00:10:52 Cumulative 18.3 hours Start 2025.10.07 @ 10:18:51 End 2025.10.07 @ 10:27:11 Sessions 1 Manual Loads 0 Difficulty Rogue Special Mode None Game No. 54 Rogue 47 Adventurer 7 Explorer 0 Win Type - Total 0 Types 0/0/0/0/0/0/0/0/0/0 Lore% 4 Gallery% 19 Achievement% 19 Wizard Run 0 Options --------- Layout 0 ASCII 0 Keyboard 1 Movement Vi Keybinds 0 Fullscreen 1 Font 18/SmallcapsGlow Map View 112x50 Zoom Use 0% Tactical HUD 1 Map Filters NONE Filters NONE Steam 1 RUN: fe27598f-b1c9-4df0-a35e-0918b924166a